[Event "Danish-ch Masters 2022"]
[Site "Svendborg"]
[Date "2022.04.17"]
[Round "9.1"]
[White "Moller Ochsner, Bjorn"]
[Black "Thybo, Jesper Sondergaard"]
[Result "1/2-1/2"]
[ECO "C67"]
[WhiteElo "2506"]
[BlackElo "2559"]
[Annotator "TA"]
[PlyCount "131"]
[EventDate "2022.04.10"]
[EventType "tourn"]
[EventCountry "DEN"]
[SourceTitle "playchess.com"]
[Source "ChessBase"]
[SourceQuality "1"]
[TimeControl "40/5400+30:1800+30"]

{[%evp 21,131,10,16,0,6,6,12,-18,0,-27,-18,-18,-25,-40,-40,-45,-63,-57,-31,-31,-35,-77,-75,-74,-97,-78,-77,-85,-56,-48,0,0,0,0,0,0,0,0,0,0,0,-10,0,0,0,-72,-60,-80,0,0,0,0,0,0,0,0,0,0,0,0,0,0,0,0,0,0,0,0,0,0,0,0,0,0,0,0,0,0,0,0,0,0,0,0,0,0,0,0,0,0,0,0,0,0,0,0,0,0,0,0,0,0,0,0,0,0,0,0,0,0,0,0]} 1. e4 {[%emt 0:02:30]} e5 {[%emt 0:00:09]} 2. Nf3 {[%emt 0:00:05]} Nc6 {[%emt 0:00:07]} 3. Bb5 {[%emt 0:00:09]} Nf6 {[%emt 0:00:18]} 4. O-O {[%emt 0:09:27]} Nxe4 {[%emt 0:00:16]} 5. d4 {[%emt 0:01:05]} Nd6 {[%emt 0:00:37]} 6. Bxc6 {[%emt 0:00:08]} dxc6 {[%emt 0:00:17]} 7. dxe5 {[%emt 0:00:05]} Nf5 {[%emt 0:00:08]} 8. Qxd8+ {[%emt 0:00:06]} Kxd8 {[%emt 0:00:03]} 9. Rd1+ {[%emt 0:00:41]} Ke8 {[%emt 0:00:37]} 10. Nc3 {[%emt 0:00:14]} a5 {[%emt 0:01:46]} 11. h3 {[%emt 0:05:16]} a4 {[%emt 0:01:29]} 12. Bf4 {[%emt 0:02:26] C67: Ruy Lopez: Berlin Defence: 4 0-0 Nxe4.} Bb4 {[%emt 0:19:02] [#]} 13. Ne4 $146 {[%emt 0:27:22]} ({Predecessor:} 13. Ne2 Be6 14. g4 Ne7 15. Nfd4 Bd5 16. b3 b5 17. Bg3 h5 18. Nf4 Bc3 {½-½ (18) Dominguez Perez,L (2758)-Sadhwani,R (2545) Chess.com INT 2020}) 13... Be6 {[%emt 0:03:18]} 14. c3 {[%emt 0:11:10]} Be7 {[%emt 0:05:52]} 15. Re1 {[%emt 0:13:17][%cal Ob2b3]} h6 {[%emt 0:19:21]} 16. g4 {[%emt 0:06:21]} Nh4 {[%emt 0:00:38]} 17. Nxh4 {[%emt 0:01:02]} Bxh4 {[%emt 0:00:07]} 18. Bg3 {[%emt 0:03:13]} Bxg3 {[%emt 0:02:31]} 19. Nxg3 {[%emt 0:00:07]} g5 {[%emt 0:00:08]} 20. a3 {[%emt 0:02:28]} Ke7 {[%emt 0:02:21]} 21. Rad1 {[%emt 0:02:10]} Rhd8 {[%emt 0:01:24]} 22. f3 {[%emt 0:03:19]} Rxd1 {[%emt 0:15:56]} 23. Rxd1 $17 {[%emt 0:00:01][%mdl 4096] Endgame KRB-KRN} Ra5 {[%emt 0:00:07]} 24. Re1 {[%emt 0:02:28]} Rb5 {[%emt 0:01:10]} 25. Re2 {[%emt 0:00:26]} Bc4 {[%emt 0:01:29]} (25... Rd5 $15 {deserves consideration.}) 26. Nf5+ $11 {[%emt 0:01:26]} Ke8 {[%emt 0:00:24]} 27. Rd2 {[%emt 0:02:52]} Rxe5 {[%emt 0:05:16]} 28. Nxh6 {[%emt 0:00:45]} Be6 {[%emt 0:00:20]} 29. Ng8 {[%emt 0:01:27]} f5 {[%emt 0:05:59]} 30. Nf6+ {[%emt 0:00:23]} Ke7 {[%emt 0:01:40]} 31. Nh5 {[%emt 0:00:27]} f4 {[%emt 0:02:27]} 32. h4 {[%emt 0:00:43] [#] hxg5 is the strong threat.} Bf7 {[%emt 0:01:00]} ({Don't play} 32... gxh4 33. Nxf4 Kf6 34. Ng2 $16) 33. Ng7 {[%emt 0:00:52]} (33. Rh2 $11 {remains equal.}) 33... Kf6 {[%emt 0:05:25]} 34. Nf5 {[%emt 0:00:16]} Bg6 {[%emt 0:01:07]} (34... gxh4 $17 {And now ...Kg5 would win.} 35. Nxh4 Re1+ 36. Kf2 Rb1) 35. hxg5+ {[%emt 0:00:24] The position is equal.} Kxg5 {[%emt 0:00:03]} 36. Nd4 {[%emt 0:00:21]} c5 {[%emt 0:01:42]} 37. Ne2 {[%emt 0:02:06]} Bd3 {[%emt 0:03:10]} 38. Kf2 {[%emt 0:00:23]} ({Of course not} 38. Rxd3 Rxe2 39. Rd5+ Kh4 $17) 38... Bxe2 {[%emt 0:00:13]} 39. Rxe2 {[%emt 0:00:01] KR-KR} Rd5 {[%emt 0:00:51]} 40. c4 {[%emt 0:01:09]} Rd4 {[%emt 0:01:06]} 41. Re5+ {[%emt 0:04:09]} Kg6 {[%emt 0:01:07]} 42. Rxc5 {[%emt 0:01:59]} Rd2+ {[%emt 0:00:19]} 43. Ke1 {[%emt 0:05:03]} Rxb2 {[%emt 0:00:05]} 44. Rxc7 {[%emt 0:00:49]} Rb3 {[%emt 0:02:05][%csl LRa3,LRf3]} 45. Ke2 {[%emt 0:02:56]} Re3+ {[%emt 0:17:35]} 46. Kf2 {[%emt 0:01:18]} Rxa3 {[%emt 0:00:12]} 47. Rxb7 {[%emt 0:01:32]} Ra2+ {[%emt 0:02:55]} 48. Ke1 {[%emt 0:06:21]} Rc2 {[%emt 0:00:10] [#] White must now prevent ...a3.} 49. Ra7 {[%emt 0:01:11]} Rxc4 {[%emt 0:00:43]} 50. Ra5 {[%emt 0:01:05]} Rd4 {[%emt 0:02:03]} 51. Ke2 {[%emt 0:01:51]} Kf6 {[%emt 0:00:10]} 52. Ke1 {[%emt 0:00:33]} Ke6 {[%emt 0:01:02]} 53. Ke2 {[%emt 0:00:30]} Kd6 {[%emt 0:01:41]} 54. g5 {[%emt 0:01:13]} Ke6 {[%emt 0:01:24]} 55. g6 {[%emt 0:00:45]} Kf6 {[%emt 0:00:14]} 56. Ra6+ $1 {[%emt 0:00:03]} Kg7 {[%emt 0:00:07]} 57. Kf1 {[%emt 0:00:19]} Rd3 {[%emt 0:05:13]} 58. Kg2 {[%emt 0:00:35]} a3 {[%emt 0:00:16]} 59. Kh3 {[%emt 0:01:02]} Rxf3+ {[%emt 0:00:11]} 60. Kg4 {[%emt 0:00:09]} Rb3 {[%emt 0:00:20]} 61. Kxf4 {[%emt 0:00:13]} Rb1 {[%emt 0:00:36]} 62. Rxa3 {[%emt 0:00:07]} Rf1+ {[%emt 0:00:09]} 63. Rf3 {[%emt 0:00:04]} Rg1 {[%emt 0:00:13]} 64. Rg3 {[%emt 0:00:09]} Rf1+ {[%emt 0:00:06]} 65. Rf3 {[%emt 0:00:03]} Rg1 {[%emt 0:00:10]} 66. Rg3 {[%emt 0:00:03] Weighted Error Value: White=0.07 (flawless) /Black=0.05 (flawless)} 1/2-1/2

[Event "Danish-ch Masters 2022"]
[Site "Svendborg"]
[Date "2022.04.17"]
[Round "9.2"]
[White "Haubro, Martin"]
[Black "Percivaldi, Martin"]
[Result "1-0"]
[ECO "C11"]
[WhiteElo "2399"]
[BlackElo "2389"]
[Annotator "TA"]
[PlyCount "78"]
[EventDate "2022.04.10"]
[EventType "tourn"]
[EventCountry "DEN"]
[SourceTitle "playchess.com"]
[Source "ChessBase"]
[SourceQuality "1"]
[TimeControl "40/5400+30:1800+30"]

{[%evp 13,78,0,16,22,24,24,26,10,31,18,21,19,27,-6,-7,0,16,14,72,84,69,-10,97,57,89,98,172,182,160,172,220,193,228,220,224,232,231,225,215,233,226,209,363,307,519,299,303,300,294,291,474,466,472,465,1395,1383,1370,1343,1272,1236,29995,29996,29996,29992,29996,29993,29999]} 1. e4 {[%emt 0:00:03]} e6 {[%emt 0:00:13]} 2. d4 {[%emt 0:00:04]} d5 {[%emt 0:00:09]} 3. Nc3 {[%emt 0:00:05]} Nf6 {[%emt 0:00:11]} 4. e5 {[%emt 0:00:05]} Nfd7 {[%emt 0:00:09]} 5. f4 {[%emt 0:00:08]} c5 {[%emt 0:00:08]} 6. Nf3 {[%emt 0:00:05]} Nc6 {[%emt 0:00:10]} 7. Be3 {[%emt 0:00:06]} a6 {[%emt 0:00:10]} 8. Ne2 {[%emt 0:00:09] C11: French: Classical System: 4 e5 and 4 Bg5 dxe4.} b5 {[%emt 0:01:25]} 9. c3 {[%emt 0:00:20]} Be7 {[%emt 0:02:31] Recently 9...b4 got a lot of attention.} 10. h4 {[%emt 0:05:51] [#] White has an edge.} h5 $146 {[%emt 0:02:38]} ({Predecessor:} 10... c4 11. Kf2 a5 12. Ng3 f5 13. h5 Nb6 14. Be2 b4 15. Nf1 Na7 16. Bd2 Bd7 {1-0 (35) Sunjaikin,B-Bereznev,A (2120) Orsk 2000}) 11. f5 {[%emt 0:18:18]} cxd4 {[%emt 0:15:15]} 12. cxd4 {[%emt 0:23:35] Hoping for fxe6.} exf5 {[%emt 0:02:19]} 13. Qc2 {[%emt 0:03:12]} Nb4 {[%emt 0:03:59]} 14. Qd2 {[%emt 0:04:22]} (14. Qxf5 $2 Nxe5 $1 {[%mdl 512]} 15. Qxe5 Nd3+ 16. Kd2 Nxe5 $19) 14... Nb6 {[%emt 0:06:28] White must now prevent ...Nc4.} 15. b3 {[%emt 0:00:09][%mdl 1024] Prevents Nc4. White has compensation.} Be6 {[%emt 0:01:20] [#]} (15... Nc6 $11) 16. a3 $1 $16 {[%emt 0:02:14]} Nc6 {[%emt 0:01:06]} 17. Bg5 {[%emt 0:06:34]} ({Better is} 17. Nf4 $14) 17... b4 {[%emt 0:12:06]} (17... f6 $1 $11 {keeps the balance.} 18. Be3 Bf7) 18. a4 {[%emt 0:00:31] Black is on the road to losing.} Na5 {[%emt 0:00:56]} 19. Rb1 {[%emt 0:00:25]} Rc8 {[%emt 0:02:47]} (19... Nc8 $16 {keeps fighting.}) 20. Nf4 $18 {[%emt 0:01:11]} Rc3 {[%emt 0:02:41]} 21. Bxa6 {[%emt 0:04:34]} Nxb3 {[%emt 0:05:40] [#]} (21... O-O $142) 22. Qd1 $1 {[%emt 0:00:16]} (22. Bb5+ $6 Bd7 23. Qe2 O-O $14) 22... Na5 {[%emt 0:02:33]} 23. O-O {[%emt 0:01:19][%cal Ob1b4] Rxb4! is the strong threat.} Qc7 {[%emt 0:13:48]} 24. Bb5+ {[%emt 0:07:41]} Kf8 {[%emt 0:01:36]} 25. Bxe7+ {[%emt 0:00:07]} Qxe7 {[%emt 0:00:53]} 26. Ng5 {[%emt 0:00:06]} Rh6 {[%emt 0:01:24]} 27. Rf3 {[%emt 0:01:28]} ({Weaker is} 27. Nxh5 Nbc4 28. Nf4 Ne3 $17) 27... Qc7 $2 {[%emt 0:01:31]} (27... Rc8 28. Qe1 Nbc4) 28. Qe1 {[%emt 0:05:53]} (28. Rxb4 $2 Rc1 29. Rb1 Rxd1+ $19) 28... Ke7 $2 {[%emt 0:08:17]} (28... Kg8 {might work better.} 29. Ne2 (29. Rxb4 $2 Rc1 $19) 29... Rc2) 29. Rxc3 {[%emt 0:00:22]} Qxc3 {[%emt 0:00:02]} 30. Qxc3 {[%emt 0:00:20] Chess con chili.} bxc3 {[%emt 0:00:01]} 31. Rc1 {[%emt 0:00:13]} Nb3 $2 {[%emt 0:01:42]} (31... Bd7 32. Rxc3 Bxb5) 32. Rxc3 {[%emt 0:00:29]} Nxd4 {[%emt 0:00:05]} 33. Rc7+ {[%emt 0:00:51]} Kf8 {[%emt 0:05:14] [#]} (33... Kd8 $142) 34. a5 $1 {[%emt 0:01:41]} Nxb5 {[%emt 0:02:05]} 35. Nfxe6+ {[%emt 0:00:07]} Ke8 {[%emt 0:01:12]} 36. Nxg7+ {[%emt 0:00:47]} Kf8 {[%emt 0:02:25]} 37. Rxf7+ {[%emt 0:00:37] White mates.} Kg8 {[%emt 0:00:07]} 38. axb6 {[%emt 0:00:05]} Rxb6 {[%emt 0:00:07]} 39. Nxh5 {[%emt 0:00:14]} Kh8 {Weighted Error Value: White=0.20 (precise) /Black=0.62} 1-0

[Event "Danish-ch Masters 2022"]
[Site "Svendborg"]
[Date "2022.04.17"]
[Round "9.3"]
[White "Borge, Nikolaj"]
[Black "Buhl Bjerre, Jonas"]
[Result "0-1"]
[ECO "B90"]
[WhiteElo "2392"]
[BlackElo "2611"]
[Annotator "TA"]
[PlyCount "80"]
[EventDate "2022.04.10"]
[EventType "tourn"]
[EventCountry "DEN"]
[SourceTitle "playchess.com"]
[Source "ChessBase"]
[SourceQuality "1"]
[TimeControl "40/5400+30:1800+30"]

{[%evp 12,80,11,9,12,6,11,4,12,5,4,-1,-14,0,0,0,0,0,0,0,0,0,0,0,0,0,14,6,7,-13,-20,-23,-15,-15,-31,-24,-23,-24,-12,-26,-25,-30,-47,-342,-337,-330,-320,-348,-321,-616,-600,-748,-737,-1197,-1185,-838,-829,-1217,-1201,-12835,-12835,-12835,-12835,-12838,-12839,-12839,-12839,-12840,-12840,-12837,-12835]} 1. e4 {[%emt 0:02:59]} c5 {[%emt 0:00:09]} 2. Nf3 {[%emt 0:00:03]} d6 {[%emt 0:00:06]} 3. d4 {[%emt 0:00:03]} cxd4 {[%emt 0:00:06]} 4. Nxd4 {[%emt 0:00:04]} Nf6 {[%emt 0:00:05]} 5. Nc3 {[%emt 0:00:03]} a6 {[%emt 0:00:05]} 6. h3 {[%emt 0:00:33]} e5 {[%emt 0:00:37] 6...e5 is better than 6...e6.} 7. Nde2 {[%emt 0:00:06]} h5 {[%emt 0:00:36] B90: Sicilian Najdorf: Unusual White 6th moves, 6 Be3 Ng4 and 6 Be3 e5.} 8. g3 {[%emt 0:00:05]} Be6 {[%emt 0:00:53]} 9. Bg2 {[%emt 0:01:24]} b5 {[%emt 0:00:33][%cal Bb7b5,Bb5b4][%mdl 32] The position is equal.} 10. O-O {[%emt 0:02:09]} Nbd7 {[%emt 0:01:05]} 11. a4 {[%emt 0:03:40]} b4 {[%emt 0:00:23]} 12. Nd5 {[%emt 0:00:08]} Nxd5 {[%emt 0:00:08]} 13. exd5 {[%emt 0:00:05]} Bf5 {[%emt 0:00:05]} 14. c3 {[%emt 0:03:11]} Rb8 {[%emt 0:07:26][%cal Ba8b8,Bb8b4,Bb4c4][%mdl 32]} 15. cxb4 {[%emt 0:15:49]} Rxb4 {[%emt 0:00:40]} 16. Qe1 {[%emt 0:10:42]} Qb8 {[%emt 0:03:30]} 17. Bd2 $1 {[%emt 0:08:39]} Rc4 {[%emt 0:04:50]} 18. b4 {[%emt 0:14:37]} Be7 {[%emt 0:03:27]} 19. Nc1 $1 {[%emt 0:01:17]} O-O {[%emt 0:11:26] [#]} 20. Nb3 $146 {[%emt 0:03:23]} (20. Qe2 {keeps more tension.} Rc2 21. Nb3 Qxb4 22. Qxh5 Qxb3 23. Qxf5 Nc5 24. Rfb1) ({Predecessor:} 20. Qe2 Rfc8 21. Nb3 Bd8 22. Rfc1 Rxc1+ 23. Rxc1 Rxc1+ 24. Nxc1 Qc8 25. a5 Nf6 26. Bf1 {½-½ (32) Stanojevic,S (2400)-Moiseev,S (2460) ICCF email 2019}) 20... Bd8 {[%emt 0:05:06]} 21. Qe2 {[%emt 0:03:59][%csl LRc4,LRh5]} Rxb4 {[%emt 0:04:19]} 22. Bxb4 {[%emt 0:02:18]} (22. Qxh5 $2 Bg6 23. Qd1 Rxb3 $19) 22... Qxb4 {[%emt 0:00:06]} 23. Nc1 {[%emt 0:03:33]} Nc5 {[%emt 0:06:23]} 24. Qxh5 {[%emt 0:01:34]} Bc2 {[%emt 0:04:13][%cal Bf5c2,Bc2a4,Ba4b5][%mdl 32]} 25. Qg4 {[%emt 0:06:01]} e4 {[%emt 0:02:54]} 26. Ra2 {[%emt 0:08:06]} Bxa4 {[%emt 0:03:52]} 27. Nd3 $2 {[%emt 0:05:02][%mdl 8192] This costs White the game.} Nxd3 $19 {[%emt 0:04:31]} 28. Bxe4 {[%emt 0:00:07] Rxa4 is the strong threat.} Bb5 {[%emt 0:05:12]} 29. Rd1 {[%emt 0:01:19]} Qb3 {[%emt 0:03:20]} (29... Re8 30. Bxd3 Re1+ 31. Kg2 Qxg4 32. hxg4 Rxd1 33. Bxb5 $17) 30. Ra3 $2 {[%emt 0:01:40]} (30. Rdd2 Nc5 31. Bc2) 30... Qxa3 {[%emt 0:03:02] Black is clearly winning.} 31. Qh5 {[%emt 0:00:12][%csl Ge4][%cal Rh5h7]} f5 {[%emt 0:02:19]} ({Inferior is} 31... g6 32. Bxg6 Kg7 33. Qh7+ Kf6 34. Bxd3 Bxd3 35. Qh6+ Bg6 36. Qxf8 $11) 32. Bxf5 {[%emt 0:00:13] [#]} Rxf5 $1 {[%emt 0:00:44]} 33. Qxf5 {[%emt 0:00:04]} Qb2 {[%emt 0:01:54] Hoping for ...Ne5.} 34. Qe6+ {[%emt 0:00:34]} Kh8 {[%emt 0:01:45]} 35. Rxd3 {[%emt 0:00:19]} Qb1+ {[%emt 0:01:07]} ({Stronger than} 35... Bxd3 36. Qe8+ Kh7 37. Qh5+ Kg8 38. Qe8+ Kh7 39. Qh5+ Kg8 40. Qe8+ Kh7 $11) 36. Kh2 {[%emt 0:00:06]} Qxd3 {[%emt 0:00:12]} 37. Qc8 {[%emt 0:00:13] [#]} Qxd5 $1 {[%emt 0:01:17][%cal Ob5f1]} 38. Qxd8+ {[%emt 0:00:05]} Kh7 {[%emt 0:00:04]} 39. Qh4+ {[%emt 0:00:04]} Kg6 {[%emt 0:00:15] ( -> ...Bc6)} 40. Qg4+ {[%emt 0:00:21]} Kf7 {[%emt 0:00:10] Weighted Error Value: White=0.76/Black=0.02 (flawless)} 0-1

[Event "Danish-ch Masters 2022"]
[Site "Svendborg"]
[Date "2022.04.17"]
[Round "9.4"]
[White "Hoi, Carsten"]
[Black "Schandorff, Lars"]
[Result "0-1"]
[ECO "D38"]
[WhiteElo "2343"]
[BlackElo "2469"]
[Annotator "TA"]
[PlyCount "52"]
[EventDate "2022.04.10"]
[EventType "tourn"]
[EventCountry "DEN"]
[SourceTitle "playchess.com"]
[Source "ChessBase"]
[SourceQuality "1"]
[TimeControl "40/5400+30:1800+30"]

{[%evp 11,52,4,26,33,17,14,12,0,0,-7,0,-162,-164,-161,-155,-269,-267,-262,-204,-192,-198,-214,-206,-270,-260,-344,-325,-314,-322,-356,-357,-347,-353,-425,-449,-470,-430,-543,-518,-1157,-1126,-1198,-1174]} 1. d4 {[%emt 0:00:53]} Nf6 {[%emt 0:00:10]} 2. Nf3 {[%emt 0:00:52]} d5 {[%emt 0:00:30]} 3. c4 {[%emt 0:00:46]} e6 {[%emt 0:00:10]} 4. Nc3 {[%emt 0:01:11]} Bb4 {[%emt 0:00:51]} 5. a3 {[%emt 0:03:59]} Bxc3+ {[%emt 0:00:57]} 6. bxc3 {[%emt 0:01:07]} Ne4 {[%emt 0:03:06] Recently 6...c5 got a lot of attention.} 7. Qc2 {[%emt 0:02:27] D38: Queen's Gambit Declined: Ragozin Defence (4 Nf3 Bb4).} b6 {[%emt 0:08:23]} 8. e3 {[%emt 0:05:32]} O-O {[%emt 0:12:11][%cal Be8g8,Bg8h8,Bh8h7,Bh7g7][%mdl 32]} 9. Bd3 {[%emt 0:05:14] The position is equal.} Ba6 {[%emt 0:02:46]} 10. O-O {[%emt 0:11:56]} Nc6 {[%emt 0:05:29] [#]} 11. Ne5 $146 {[%emt 0:11:18]} (11. a4 $11) ({Predecessor:} 11. Bxe4 dxe4 12. Nd2 f5 13. Rb1 Na5 14. Qa2 c5 15. f3 cxd4 16. cxd4 exf3 17. Rxf3 Bxc4 18. Nxc4 {0-1 (33) Cousteix,T-Boittiaux,I ICCF email 2010}) 11... Nxe5 $19 {[%emt 0:02:47]} 12. dxe5 {[%emt 0:10:52] [#]} Nc5 {[%emt 0:07:27]} 13. Bxh7+ {[%emt 0:03:21]} (13. Rd1 $17) 13... Kh8 {[%emt 0:00:06]} 14. Rd1 {[%emt 0:00:27][%cal Bf1d1,Bd1d4,Bd4h4][%mdl 32]} g6 {[%emt 0:03:11]} 15. Bxg6 {[%emt 0:01:44]} fxg6 {[%emt 0:00:06]} 16. cxd5 {[%emt 0:01:28]} exd5 {[%emt 0:19:25]} 17. c4 {[%emt 0:06:21]} Bxc4 {[%emt 0:02:48]} 18. Bb2 {[%emt 0:15:48]} Kh7 {[%emt 0:04:36] Hoping for ...Bb3.} 19. Rd4 {[%emt 0:02:00]} Qg5 {[%emt 0:02:56]} 20. g3 {[%emt 0:01:59]} Ne6 {[%emt 0:08:07]} 21. Rh4+ {[%emt 0:01:45]} Kg7 {[%emt 0:01:42]} 22. e4 {[%emt 0:01:54]} Rh8 {[%emt 0:00:24] Black is clearly winning.} 23. f4 {[%emt 0:00:46]} Qe7 {[%emt 0:01:40]} 24. f5 {[%emt 0:02:38]} Qc5+ {[%emt 0:01:46]} 25. Kh1 {[%emt 0:00:56]} (25. Qf2 $142 Rxh4 26. Qxc5 Nxc5 27. gxh4) 25... Rxh4 {[%emt 0:00:33]} 26. gxh4 {[%emt 0:00:05] [#]} Qe3 $1 {[%emt 0:01:52] Black took control after the opening.  Weighted Error Value: White=0.69/Black=0.06 (flawless)} 0-1

[Event "Danish-ch Masters 2022"]
[Site "Svendborg"]
[Date "2022.04.17"]
[Round "9.5"]
[White "Sylvan, Jacob"]
[Black "Olsen, Filip Boe"]
[Result "1/2-1/2"]
[ECO "B94"]
[WhiteElo "2312"]
[BlackElo "2386"]
[Annotator "TA"]
[PlyCount "40"]
[EventDate "2022.04.10"]
[EventType "tourn"]
[EventCountry "DEN"]
[SourceTitle "playchess.com"]
[Source "ChessBase"]
[SourceQuality "1"]
[TimeControl "40/5400+30:1800+30"]

{[%evp 11,40,11,20,23,17,16,38,18,12,29,25,10,23,29,35,0,0,2,114,0,106,0,97,0,0,0,84,0,0,0,111]} 1. e4 {[%emt 0:00:03]} c5 {[%emt 0:00:11]} 2. Nf3 {[%emt 0:01:35]} d6 {[%emt 0:00:15]} 3. d4 {[%emt 0:00:05]} cxd4 {[%emt 0:00:14]} 4. Nxd4 {[%emt 0:00:06]} Nf6 {[%emt 0:00:19]} 5. Nc3 {[%emt 0:00:04]} a6 {[%emt 0:00:23]} 6. Bg5 {[%emt 0:01:59]} Nbd7 {[%emt 0:00:30]} 7. Qe2 {[%emt 0:00:24] 7.Qe2 is the recent fashion. B94: Sicilian Najdorf: 6 Bg5 Nbd7.} h6 {[%emt 0:04:32]} 8. Bh4 {[%emt 0:02:33]} g6 {[%emt 0:01:10]} 9. f4 {[%emt 0:00:56] Strongly threatening 0-0-0. White is slightly better.} e5 {[%emt 0:01:26]} 10. fxe5 {[%emt 0:01:17]} dxe5 {[%emt 0:00:11] [#]} 11. O-O-O $1 {[%emt 0:00:08]} Qc7 {[%emt 0:00:43]} ({Weaker is} 11... exd4 12. e5 $1 Bc5 13. exf6+ Kf8 14. Ne4 $16) 12. Nb3 {[%emt 0:00:07]} b5 {[%emt 0:00:18]} 13. Rxd7 {[%emt 0:00:25]} Nxd7 {[%emt 0:00:18]} 14. Nd5 {[%emt 0:00:05][%cal Rd5c7] [#]} Qa7 $146 {[%emt 0:06:48] [#]} (14... Qb8 $1 $11 {keeps the balance.}) ({Predecessor:} 14... Qb8 15. Na5 Bg7 16. Be7 Bb7 17. Nxb7 Qxb7 18. Qf3 Nb6 19. Bf6 Nxd5 20. Bxg7 Rh7 21. Bxe5 {1-0 (43) Shevchenko,K (2605)-Fedoseev,V (2696) Belgrade 2021}) 15. Na5 {[%emt 0:03:19]} (15. Qd2 $1 $16) 15... Bd6 {[%emt 0:02:57] [#]} (15... Bg7 $1 $11) 16. Bf2 {[%emt 0:04:36]} ({Reject} 16. Nc6 $6 Qb7 17. Nd8 Qa7 $11) (16. Qf3 $1 $16) 16... Qb8 {[%emt 0:03:37]} (16... Bc5 $11 17. Nc6 Qb7 18. Nxe5 Bxf2 19. Qxf2 Nxe5) 17. Nc6 {[%emt 0:02:33][%mdl 1024] White has strong compensation. 0x0.002037565f53dp-1022s more active pieces. The black rooks are badly placed. Pair of Knights!} Qb7 {[%emt 0:00:09]} 18. Na5 {[%emt 0:00:06]} Qb8 {[%emt 0:00:07]} 19. Nc6 {[%emt 0:00:46]} Qb7 {[%emt 0:01:22]} 20. Na5 {[%emt 0:00:16]} Qb8 {Weighted Error Value: White=0.37/Black=0.39} 1/2-1/2